bitfinex/quotes_ETHUSD_20230105
["timestamp","ask_amount","ask_price","bid_price","bid_amount"]
[1672900043723,5.43774222,1254.2,1254.1,28.8144616]
[1672900043995,5.43774222,1254.2,1254.1,20.8406216]
[1672900044783,5.43774222,1254.2,1254.1,12.8667816]
[1672900045217,2.45187457,1254.2,1254.1,12.8667816]
[1672900045474,2.38587457,1254.2,1254.1,12.8667816]
[1672900047415,5.37174222,1254.2,1254.1,12.8667816]
[1672900047634,2.45187457,1254.2,1254.1,12.8667816]
[1672900047824,2.38587457,1254.2,1254.1,12.8667816]
[1672900048579,5.37174222,1254.2,1254.1,12.8667816]
[1672900048794,5.43774222,1254.2,1254.1,12.8667816]
[1672900050345,2.45187457,1254.2,1254.1,12.8667816]
[1672900050553,2.38587457,1254.2,1254.1,20.8406216]
[1672900050786,2.38587457,1254.2,1254.1,28.8144616]
[1672900051012,4.17995641,1254.2,1254.1,28.8144616]
[1672900052190,2.38587457,1254.2,1254.1,28.8144616]
[1672900052522,2.38587457,1254.2,1254.1,20.8406216]
[1672900052742,2.38587457,1254.2,1254.1,15.49859691]
[1672900054583,5.37174222,1254.2,1254.1,15.49859691]
[1672900054891,5.43774222,1254.2,1254.1,15.49859691]
[1672900055414,5.43774222,1254.2,1254.1,7.52475691]
[1672900055585,3.05186765,1254.2,1254.1,7.52475691]
[1672900055801,19.53570336,1254.2,1254.1,7.52475691]
[1672900055951,27.57491336,1254.2,1254.1,7.52475691]
[1672900056160,16.1950107,1254.2,1254.1,7.52475691]
[1672900056577,4.63251734,1254.2,1254.1,7.52475691]
[1672900056786,7.97321,1254.2,1254.1,7.52475691]
[1672900057038,8.03921,1254.2,1254.1,7.52475691]
[1672900057208,16.01242,1254.2,1254.1,7.52475691]
[1672900057601,23.98563,1254.2,1254.1,7.52475691]
[1672900057734,16.01242,1254.2,1254.1,7.52475691]
[1672900057945,23.98563,1254.2,1254.1,7.52475691]
[1672900058156,8.03921,1254.2,1254.1,7.52475691]
[1672900058379,19.60170336,1254.2,1254.1,7.52475691]
[1672900058590,11.62849336,1254.2,1254.1,7.52475691]
[1672900058841,8.03921,1254.2,1254.1,7.52475691]
[1672900059576,19.00136664,1254.2,1254.1,7.52475691]
[1672900059766,3.05494664,1254.2,1254.1,7.52475691]
[1672900059961,2.98894664,1254.2,1254.1,7.52475691]
[1672900062843,5.65401558,1254.2,1254.1,7.52224236]
[1672900063054,5.72001558,1254.2,1254.1,7.52224236]
[1672900067098,5.72001558,1254.2,1254.1,15.49608236]
[1672900067887,8.11075632,1254.2,1254.1,15.49608236]
[1672900068361,8.11075632,1254.2,1254.1,23.46992236]
[1672900068572,5.72001558,1254.2,1254.1,23.46992236]
[1672900069966,6.92525523,1254.2,1254.1,23.46992236]
[1672900071155,6.92525523,1254.2,1254.1,15.49608236]
[1672900072433,6.92525523,1254.2,1254.1,7.52224236]
[1672900078901,35.39222584,1254.2,1254.1,0.06214302]
[1672900079160,35.77633859,1254.2,1253.9,14.0]
[1672900079407,5.37852168,1254.0,1253.9,14.06214302]
[1672900079617,6.23261385,1254.0,1253.9,14.06214302]
[1672900079854,5.44452168,1254.0,1253.9,14.06214302]
[1672900080388,5.44452168,1254.0,1253.9,17.06214302]
[1672900080999,2.45645408,1254.0,1253.9,17.06214302]
[1672900081203,2.39045408,1254.0,1253.9,17.06214302]
[1672900081372,5.37852168,1254.0,1253.9,17.06214302]
[1672900081582,5.44452168,1254.0,1253.9,17.06214302]
[1672900082595,2.45645408,1254.0,1253.9,17.06214302]
[1672900082738,2.39045408,1254.0,1253.9,17.06214302]
[1672900083071,4.18258081,1254.0,1253.9,17.06214302]
[1672900083944,2.39045408,1254.0,1253.9,3.06214302]
[1672900084139,4.21846619,1254.0,1253.9,3.0]
[1672900084351,6.01024165,1254.0,1253.9,17.0]
[1672900084587,6.07624165,1254.0,1253.9,17.06214302]
[1672900087423,12.25894619,1254.0,1253.9,17.06214302]
[1672900088274,4.28446619,1254.0,1253.9,17.06214302]
[1672900088411,4.21846619,1254.0,1253.9,17.06214302]
[1672900095223,7.15653379,1254.0,1253.9,17.06214302]
[1672900095434,7.22253379,1254.0,1253.9,17.06214302]
[1672900095629,5.39452168,1254.0,1253.9,17.06214302]
[1672900096637,2.40645408,1254.0,1253.9,17.06214302]
[1672900096848,2.34045408,1254.0,1253.9,17.06214302]
[1672900097152,2.34245408,1254.0,1253.9,17.06014302]
[1672900097442,2.34045408,1254.0,1253.9,17.06214302]
[1672900101278,4.96087519,1254.0,1253.9,17.06214302]
[1672900105920,7.94894279,1254.0,1253.9,17.06214302]
[1672900106110,8.01494279,1254.0,1253.9,17.06214302]
[1672900107581,33.85038279,1254.0,1253.9,0.06214302]
[1672900107797,33.85038279,1254.0,1253.8,30.38009255]
[1672900107798,37.51066641,1254.0,1253.8,30.38009255]
[1672900108024,28.82479411,1253.9,1253.8,0.09009255]
[1672900108240,25.76313416,1253.9,1253.8,0.02794953]
[1672900110189,25.76533359,1253.9,1253.8,0.02794953]
[1672900111088,23.85133359,1253.9,1253.8,0.02794953]
[1672900112854,15.87622359,1253.9,1253.8,0.02794953]
[1672900113680,18.26344649,1253.9,1253.8,0.02794953]
[1672900114020,15.87622359,1253.9,1253.8,0.02794953]
[1672900114564,18.26315282,1253.9,1253.8,0.02794953]
[1672900114716,15.87622359,1253.9,1253.8,0.02794953]
[1672900115663,17.79022359,1253.9,1253.8,0.02794953]
[1672900116406,20.17718561,1253.9,1253.8,0.02794953]
[1672900116679,17.79022359,1253.9,1253.8,0.02794953]
[1672900116976,17.79022359,1253.9,1253.8,0.02447687]
[1672900118140,37.24044359,1253.9,1253.8,0.02447687]
[1672900118293,38.43928478,1253.9,1253.8,0.02447687]
[1672900119175,48.93538478,1253.9,1253.8,0.02447687]
[1672900119361,45.43538478,1253.9,1253.8,0.02447687]
[1672900120093,48.93538478,1253.9,1253.8,0.02447687]
[1672900120298,45.43538478,1253.9,1253.8,0.02447687]
[1672900120971,48.93538478,1253.9,1253.8,0.02447687]
[1672900121308,45.43538478,1253.9,1253.8,0.02447687]
[1672900121477,48.93538478,1253.9,1253.8,0.02447687]
[1672900121696,45.43538478,1253.9,1253.8,0.02447687]
[1672900122182,48.93538478,1253.9,1253.8,0.02447687]
[1672900124275,45.43538478,1253.9,1253.8,0.02447687]
[1672900124758,48.93538478,1253.9,1253.8,0.02447687]
[1672900125068,45.43538478,1253.9,1253.8,0.02447687]
[1672900125918,41.84957948,1253.9,1253.8,0.02447687]
[1672900126287,45.34957948,1253.9,1253.8,0.02447687]
[1672900126644,45.43538478,1253.9,1253.8,0.02447687]
[1672900127322,37.46027478,1253.9,1253.8,0.02447687]
[1672900127537,36.8565543,1253.9,1253.8,0.02447687]
[1672900127854,25.89935948,1253.9,1253.8,0.02447687]
[1672900128893,33.87446948,1253.9,1253.8,0.02447687]
[1672900129354,37.37446948,1253.9,1253.8,0.02447687]
[1672900129574,33.87446948,1253.9,1253.8,0.02447687]
[1672900130694,45.34957948,1253.9,1253.8,0.02447687]
[1672900131347,48.93538478,1253.9,1253.8,0.02447687]
[1672900133110,45.34957948,1253.9,1253.8,0.02447687]
[1672900133476,37.37446948,1253.9,1253.8,0.02447687]
[1672900133794,40.96027478,1253.9,1253.8,0.02447687]
[1672900134109,37.37446948,1253.9,1253.8,0.02447687]
[1672900134636,40.96027478,1253.9,1253.8,0.02447687]
[1672900136286,37.46027478,1253.9,1253.8,0.02447687]
[1672900136520,32.98516478,1253.9,1253.8,0.02447687]
[1672900136709,32.98399541,1253.9,1253.8,0.02447687]
[1672900136920,29.39819011,1253.9,1253.8,0.02447687]
[1672900137324,37.37330011,1253.9,1253.8,0.02447687]
[1672900137536,29.39819011,1253.9,1253.8,0.02447687]
[1672900138270,40.95910541,1253.9,1253.8,0.02447687]
[1672900138712,48.93421541,1253.9,1253.8,0.02447687]
[1672900138920,50.03263364,1253.9,1253.8,0.02447687]
[1672900139916,42.05752364,1253.9,1253.8,0.02447687]
[1672900140617,56.5374751,1253.9,1253.8,0.02447687]
[1672900140810,56.7674751,1253.9,1253.8,0.02447687]
[1672900142699,4.0,1253.8,1253.5,30.41442496]
[1672900142924,4.88769182,1253.6,1253.5,30.41442496]
[1672900143224,29.83506,1253.6,1253.5,0.12442496]
[1672900143418,29.90106,1253.6,1253.5,0.06228194]
[1672900143620,12.93071996,1253.6,1253.5,0.06228194]
[1672900143841,7.34069735,1253.6,1253.5,0.06228194]
[1672900145259,8.47476709,1253.6,1253.5,0.06228194]
[1672900146613,6.57076709,1253.6,1253.5,0.06228194]
[1672900146890,4.1837697,1253.6,1253.5,0.06228194]
[1672900147133,29.9628297,1253.6,1253.5,0.06228194]
[1672900147327,11.09108974,1253.6,1253.5,0.06228194]
[1672900147534,14.07592502,1253.6,1253.5,0.06228194]
[1672900148933,12.16192502,1253.6,1253.5,0.06228194]
[1672900149516,14.54925202,1253.6,1253.5,0.06228194]
[1672900150414,12.16192502,1253.6,1253.5,0.06228194]
[1672900150569,28.11596502,1253.6,1253.5,0.06228194]
[1672900150769,28.1150505,1253.6,1253.5,0.06228194]
[1672900151862,20.1380305,1253.6,1253.5,0.06228194]
[1672900153099,34.51356112,1253.6,1253.5,0.06228194]
[1672900153519,11.67678974,1253.6,1253.5,0.06228194]
[1672900153732,18.15155735,1253.6,1253.5,0.06228194]
[1672900153961,18.15155394,1253.6,1253.5,0.06228194]
[1672900154211,26.12857394,1253.6,1253.5,0.06228194]
[1672900154398,23.14578293,1253.6,1253.5,0.06228194]
[1672900155023,19.65380974,1253.6,1253.5,0.06228194]
[1672900155581,22.63696496,1253.6,1253.5,0.06228194]
[1672900156152,38.69429712,1253.6,1253.5,0.06228194]
[1672900157363,38.09559712,1253.6,1253.5,0.06228194]
[1672900158417,44.80916694,1253.6,1253.5,1.94e-06]
[1672900158584,42.14397925,1253.6,1253.5,1.94e-06]
[1672900158795,42.14397925,1253.6,1253.4,0.04024263]
[1672900158796,46.32114779,1253.6,1253.4,0.04024263]
[1672900159005,38.24152181,1253.5,1253.4,0.04024263]
[1672900159257,45.29420182,1253.5,1253.4,0.04024263]
[1672900159635,4.0,1253.4,1253.3,30.39311482]
[1672900159845,40.15714506,1253.4,1253.3,0.10311482]
[1672900160058,40.15714506,1253.4,1253.3,0.0409718]
[1672900160059,47.02171042,1253.4,1253.3,0.0409718]
[1672900160500,4.0,1253.3,1253.2,0.16112097]
[1672900160721,37.63329438,1253.3,1253.2,0.16112097]
[1672900160893,47.14012223,1253.3,1253.2,0.16112097]
[1672900161758,44.75804191,1253.3,1253.2,0.16112097]
[1672900162518,47.14222084,1253.3,1253.2,0.16112097]
[1672900164184,29.99240158,1253.3,1253.2,0.16112097]
[1672900164565,22.01347158,1253.3,1253.2,0.16112097]
[1672900165139,49.45026158,1253.3,1253.2,0.16112097]
[1672900165333,48.26024134,1253.3,1253.2,0.16112097]
[1672900165875,50.640141,1253.3,1253.2,0.16112097]
[1672900166067,48.26024134,1253.3,1253.2,0.16112097]
[1672900166239,50.64012573,1253.3,1253.2,0.16112097]
[1672900166448,61.43824134,1253.3,1253.2,0.16112097]
[1672900166660,60.37468647,1253.3,1253.2,2.097e-05]
[1672900166870,12.391,1253.2,1253.1,0.16112097]
[1672900167116,4.0,1253.1,1253.0,0.2112078]
[1672900167303,44.31436,1253.0,1252.9,0.16477593]
[1672900167513,59.49924972,1253.0,1252.9,0.16477593]
[1672900167739,64.28624972,1253.0,1252.9,0.16477593]
[1672900167976,67.60053734,1253.0,1252.9,0.16477593]
[1672900168163,51.33269734,1253.0,1252.9,0.16477593]
[1672900168374,45.31987635,1253.0,1252.9,0.16477593]
[1672900168583,44.12909699,1253.0,1252.9,0.16477593]
[1672900169130,50.73833159,1253.0,1252.9,0.16477593]
[1672900169348,50.73833159,1253.0,1252.8,0.13662472]
[1672900169349,53.71087635,1253.0,1252.8,0.13662472]
[1672900169493,47.22468429,1252.9,1252.8,0.13662472]
[1672900169702,55.28018236,1252.9,1252.8,0.13662472]
[1672900169977,52.3076376,1252.9,1252.8,0.03662472]
[1672900170143,55.28238179,1252.9,1252.8,0.03662472]
[1672900170356,60.06938179,1252.9,1252.8,0.03662472]
[1672900170559,58.87851676,1252.9,1252.8,0.03662472]
[1672900170777,56.50303403,1252.9,1252.8,0.03662472]
[1672900171300,13.178,1252.6,1252.3,0.12214302]
[1672900171487,39.06943951,1252.5,1252.1,0.7319039]
[1672900171868,3.98914951,1252.4,1252.1,0.7319039]
[1672900172182,11.97461951,1252.3,1252.1,0.6819039]
[1672900172395,4.21914951,1252.2,1252.1,0.6819039]
[1672900172744,6.24475846,1252.2,1252.1,0.6819039]
[1672900172931,6.31075846,1252.2,1252.1,0.6819039]
[1672900173801,5.051,1252.4,1252.2,1.12354122]
[1672900174180,4.05514951,1252.4,1252.2,1.12354122]
[1672900174494,3.98914951,1252.4,1252.2,1.12354122]
[1672900175068,0.00219943,1252.3,1252.2,1.12354122]
[1672900175319,21.55894894,1252.3,1252.2,1.12354122]
[1672900175646,9.62841483,1252.3,1252.2,1.12354122]
[1672900175839,5.42434894,1252.3,1252.2,1.12354122]
[1672900176024,0.06819943,1252.3,1252.2,1.12354122]
[1672900176241,0.00219943,1252.3,1252.2,1.12354122]
[1672900176519,0.066,1252.5,1252.2,9.10948122]
[1672900176668,0.066,1252.5,1252.3,4.0]
[1672900176669,0.00219943,1252.5,1252.3,4.0]
[1672900176856,0.00219943,1252.5,1252.3,11.98528]
[1672900177068,0.00219943,1252.5,1252.3,20.03272302]
[1672900177271,0.00219943,1252.5,1252.3,8.04742302]
[1672900177487,0.00219943,1252.5,1252.3,16.03245302]
[1672900177726,0.00219943,1252.5,1252.4,11.98466]
[1672900177939,0.00219943,1252.5,1252.4,12.04680302]
[1672900178322,0.00219943,1252.5,1252.4,28.01612302]
[1672900178743,0.00219943,1252.5,1252.4,20.03146302]
[1672900179797,9.8859,1252.7,1252.4,28.49468227]
[1672900180005,16.51627951,1252.7,1252.4,28.49468227]
[1672900180663,6.69637951,1252.7,1252.4,28.49468227]
[1672900181007,6.69637951,1252.7,1252.4,16.51002227]
[1672900181222,22.66192951,1252.7,1252.4,0.54070227]
[1672900181431,14.67912951,1252.7,1252.4,8.46313925]
[1672900181743,14.67915951,1252.7,1252.4,8.52528227]
[1672900181954,22.66193951,1252.7,1252.4,0.54070227]
[1672900182126,30.64471951,1252.7,1252.4,0.47855925]
[1672900182864,14.67915951,1252.7,1252.4,0.47855925]
[1672900183429,0.00219943,1252.6,1252.4,0.47855925]
[1672900183745,3.98914951,1252.5,1252.3,8.04706302]
[1672900183974,4.8112844,1252.5,1252.3,8.04706302]
[1672900184669,4.81348383,1252.5,1252.3,0.06214302]
[1672900184879,12.79762383,1252.5,1252.2,9.64989349]
[1672900185071,12.86362383,1252.5,1252.2,9.64989349]
[1672900185892,4.87948383,1252.5,1252.2,25.62177349]
[1672900186098,4.81348383,1252.5,1252.2,25.62177349]
[1672900188049,4.81348383,1252.5,1252.2,17.63583349]
[1672900189567,4.81348383,1252.5,1252.2,25.62177349]
[1672900189779,4.81348383,1252.5,1252.2,17.63583349]
[1672900190258,4.81348383,1252.5,1252.2,25.62177349]
[1672900190886,4.81348383,1252.5,1252.2,17.63583349]
[1672900192510,4.81348383,1252.5,1252.2,25.62177349]
[1672900193197,4.81348383,1252.5,1252.2,25.62467929]
[1672900193365,0.82433432,1252.5,1252.2,25.62467929]
[1672900195241,12.0212,1252.6,1252.3,4.0]
[1672900195242,0.066,1252.6,1252.3,4.0]
[1672900195491,2.64123,1252.7,1252.4,15.96932]
[1672900195660,6.63037951,1252.7,1252.4,16.03146302]
[1672900195874,6.69637951,1252.7,1252.4,16.03146302]
[1672900196119,6.69637951,1252.7,1252.4,0.06214302]
[1672900196334,30.64544951,1252.7,1252.3,8.04742302]
[1672900196555,22.66230951,1252.7,1252.3,16.03272302]
[1672900196744,14.67916951,1252.7,1252.3,24.01802302]
[1672900197091,17.80416951,1252.7,1252.3,24.01802302]
[1672900197398,33.77005951,1252.7,1252.3,0.06214302]
[1672900197611,19.95643951,1252.6,1252.2,33.27862929]
[1672900197819,3.98914951,1252.5,1252.3,15.97057]
[1672900197973,3.98914951,1252.5,1252.3,16.03271302]
[1672900198185,3.98914951,1252.5,1252.3,24.01801302]
[1672900198395,14.58463667,1252.6,1252.3,24.01801302]
[1672900198665,10.4457,1252.6,1252.3,24.01801302]
[1672900198877,10.4457,1252.6,1252.3,16.03271302]
[1672900199027,10.4457,1252.6,1252.3,24.01801302]
[1672900200043,10.4457,1252.6,1252.3,16.03271302]
[1672900200656,14.43704894,1252.6,1252.3,8.04741302]
[1672900200866,25.97622283,1252.6,1252.3,8.04741302]
[1672900201117,33.95965283,1252.6,1252.3,0.06214302]
[1672900201284,25.97622283,1252.6,1252.3,7.98523]
[1672900201490,17.99279283,1252.6,1252.3,12.04737302]
[1672900201704,17.99279283,1252.6,1252.3,8.04737302]
[1672900202703,1.08743127,1252.5,1252.3,8.04737302]
[1672900202939,2.99545368,1252.5,1252.3,8.04737302]
[1672900204235,1.08743127,1252.5,1252.3,8.04737302]
[1672900204608,1e-08,1252.5,1252.4,4.47567741]
[1672900204820,1e-08,1252.5,1252.4,28.42965741]
[1672900204977,1e-08,1252.5,1252.4,28.49180043]
[1672900205356,1e-08,1252.5,1252.4,8.52874579]
[1672900205503,1e-08,1252.5,1252.4,0.54408579]
[1672900205705,1e-08,1252.5,1252.4,0.48194277]
[1672900206168,1e-08,1252.5,1252.4,8.46660277]
[1672900206336,1e-08,1252.5,1252.4,8.52874579]
[1672900206550,1e-08,1252.5,1252.4,16.03484654]
[1672900206763,1e-08,1252.5,1252.4,24.01950654]
[1672900207178,1e-08,1252.5,1252.4,29.61875944]
[1672900207639,1e-08,1252.5,1252.4,32.61875944]
[1672900209598,1e-08,1252.5,1252.4,30.63680063]
[1672900211379,1e-08,1252.5,1252.4,27.01950654]
[1672900213480,2.96966154,1252.5,1252.4,0.06214302]
[1672900213727,2.97279666,1252.5,1252.3,24.01711302]
[1672900213962,2.97278723,1252.5,1252.3,8.04708302]
[1672900214112,1.19332587,1252.4,1252.3,8.04708302]
[1672900214330,1.19332587,1252.4,1252.3,11.04708302]
[1672900216117,1.19332587,1252.4,1252.3,27.01768302]
[1672900216371,1.77946136,1252.5,1252.3,27.01768302]
[1672900216537,1.1940828,1252.4,1252.3,27.01768302]
[1672900216997,1.1940828,1252.4,1252.3,19.03238302]
[1672900217382,1.1940828,1252.4,1252.3,16.03238302]
[1672900217592,4.2180765,1252.5,1252.3,16.03238302]
[1672900217839,1.194077,1252.4,1252.3,16.03238302]
[1672900218079,2.38812917,1252.4,1252.3,16.03238302]
[1672900218285,2.38813904,1252.4,1252.3,8.04708302]
[1672900218447,2.38813904,1252.4,1252.3,8.04744302]
[1672900219379,2.38813904,1252.4,1252.3,16.03274302]
[1672900220449,4.16760039,1252.4,1252.3,8.04744302]
[1672900220659,4.16760039,1252.4,1252.3,0.06214302]
[1672900220660,5.00593139,1252.4,1252.3,0.06214302]
[1672900220907,5.07193139,1252.4,1252.3,7.9853]
[1672900221117,5.07193139,1252.4,1252.3,8.04744302]
[1672900221310,4.23360039,1252.4,1252.3,24.01804302]
[1672900221521,4.16760039,1252.4,1252.3,24.01804302]
[1672900221698,2.38813904,1252.4,1252.3,24.01804302]
[1672900222121,4.16760039,1252.4,1252.3,24.01804302]
[1672900222824,2.38813904,1252.4,1252.3,24.01804302]
[1672900223309,2.38813904,1252.4,1252.3,16.03274302]
[1672900223520,5.00593139,1252.4,1252.3,0.06214302]
[1672900223704,5.07193139,1252.4,1252.3,7.9853]
[1672900223920,4.23360039,1252.4,1252.3,24.01804302]
[1672900224157,4.16760039,1252.4,1252.3,16.03274302]
[1672900224368,4.16760039,1252.4,1252.3,8.04744302]
[1672900224589,5.34615349,1252.4,1252.3,0.06214302]
[1672900224740,5.34615349,1252.4,1252.2,25.08031122]
[1672900224741,6.54706139,1252.4,1252.2,9.17113424]
[1672900224951,1.19388013,1252.3,1252.2,25.14251424]
[1672900225224,6.54706139,1252.4,1252.2,17.15682424]
[1672900225539,1.19393715,1252.3,1252.2,17.15682424]
[1672900225751,4.14641331,1252.3,1252.2,9.16839451]
[1672900225898,2.36695196,1252.3,1252.2,9.16839451]
[1672900226106,4.14641331,1252.3,1252.2,9.16839451]
[1672900226587,2.36695196,1252.3,1252.2,9.16839451]
[1672900226798,2.36695196,1252.3,1252.2,17.15433451]
[1672900227621,2.36695196,1252.3,1252.2,9.16839451]
[1672900227998,2.36695196,1252.3,1252.2,17.15433451]
[1672900228652,2.36695196,1252.3,1252.2,17.10433451]
[1672900229546,2.36695196,1252.3,1252.2,9.11839451]
[1672900230089,4.14641331,1252.3,1252.2,9.11839451]
[1672900230511,2.36695196,1252.3,1252.2,25.09027451]
[1672900230756,15.6749834,1252.4,1252.3,1.18941597]
[1672900230928,5.3683834,1252.4,1252.3,17.16001597]
[1672900231135,4.17444625,1252.4,1252.3,17.22215899]
[1672900231451,5.30149522,1252.4,1252.3,17.22215899]
[1672900231662,5.36749574,1252.4,1252.3,17.22215899]
[1672900232139,5.36749574,1252.4,1252.3,9.23685899]
[1672900232400,4.17444625,1252.4,1252.3,9.23685899]
[1672900232603,4.10844625,1252.4,1252.3,9.23685899]
[1672900233070,5.30137041,1252.4,1252.3,9.23685899]
[1672900233289,5.36737041,1252.4,1252.3,9.23685899]
[1672900234239,5.36737041,1252.4,1252.3,25.20745899]
[1672900234620,5.36737041,1252.4,1252.3,17.22215899]
[1672900234830,5.36737041,1252.4,1252.3,9.23685899]
[1672900235484,5.36737041,1252.4,1252.3,1.25155899]
[1672900235814,5.36737041,1252.4,1252.3,1.18941597]
[1672900236008,5.36737041,1252.4,1252.3,17.16001597]
[1672900236336,5.36737041,1252.4,1252.3,17.22215899]
[1672900236660,2.45300116,1252.4,1252.3,25.20745899]
[1672900236877,1.194077,1252.4,1252.3,25.20745899]
[1672900237604,1.194077,1252.4,1252.3,30.66809672]
[1672900238734,1.194077,1252.4,1252.3,35.85263462]
[1672900238943,1.194077,1252.4,1252.3,38.82596019]
[1672900239163,1.194077,1252.4,1252.3,43.79344031]
[1672900239345,1.194077,1252.4,1252.3,42.59805192]
[1672900239555,1.194077,1252.4,1252.3,37.6305718]
[1672900239767,1.194077,1252.4,1252.3,30.66809672]
[1672900253380,1.194077,1252.4,1252.3,30.66551023]
[1672900253907,1.194077,1252.4,1252.3,28.68343175]
[1672900256902,1.19627643,1252.4,1252.3,20.69813175]
[1672900257131,1.43519649,1252.4,1252.3,9.71283175]
[1672900257347,2.62812065,1252.4,1252.3,9.71283175]
[1672900257550,2.62812065,1252.4,1252.3,1.72753175]
[1672900257894,1.43519649,1252.4,1252.3,9.65068873]
[1672900258110,1.43519649,1252.4,1252.3,17.69813175]
[1672900258281,1.19627643,1252.4,1252.3,25.68343175]
[1672900258703,1.194077,1252.4,1252.3,25.68343175]
[1672900261049,1.194077,1252.4,1252.3,17.69813175]
[1672900261262,1.194077,1252.4,1252.3,25.68343175]
[1672900273790,1.194077,1252.4,1252.3,27.66556324]
[1672900275317,1.19017233,1252.4,1252.3,27.66556324]
[1672900278202,2.38309649,1252.4,1252.3,27.66556324]
[1672900278415,1.19017233,1252.4,1252.3,27.66556324]
[1672900278854,1.19017233,1252.4,1252.3,19.68026324]
[1672900279009,2.38485827,1252.4,1252.3,19.68026324]
[1672900279376,1.19017233,1252.4,1252.3,11.69496324]
[1672900279549,1.19017233,1252.4,1252.3,19.68026324]
[1672900279760,1.19017233,1252.4,1252.3,27.66556324]
[1672900280487,3.04016841,1252.5,1252.3,26.47873376]
[1672900280706,2.97416841,1252.5,1252.3,24.49660227]
[1672900283219,1.19470706,1252.5,1252.3,25.69199066]
[1672900285631,2.97416841,1252.5,1252.3,24.49660227]
[1672900286472,2.97416841,1252.5,1252.3,25.69199066]
[1672900289690,1e-08,1252.5,1252.4,9.96668653]
[1672900289945,1.19482593,1252.5,1252.4,10.02882955]
[1672900290100,1e-08,1252.5,1252.4,10.02882955]
[1672900290730,2.97432139,1252.5,1252.4,10.02882955]
[1672900290986,1e-08,1252.5,1252.4,2.04416955]
[1672900291202,1.19481751,1252.5,1252.4,1.98202653]
[1672900291361,1.19481751,1252.5,1252.3,16.51072227]
[1672900291362,1.79217889,1252.5,1252.3,16.51072227]
[1672900291563,2.98696484,1252.5,1252.3,16.51072227]
[1672900292423,2.98696484,1252.5,1252.3,17.70611066]
[1672900292638,2.98696484,1252.5,1252.3,25.69141066]
[1672900295158,1.19478595,1252.4,1252.3,24.01746302]
[1672900295362,1.79217889,1252.5,1252.3,25.99958173]
[1672900295572,1.79217889,1252.5,1252.3,24.01746302]
[1672900295803,1.19471974,1252.4,1252.3,24.01746302]
[1672900296142,4.16479403,1252.5,1252.3,25.9995942]
[1672900296309,1.19467425,1252.4,1252.3,24.01746302]
[1672900296499,4.23079403,1252.5,1252.3,25.99961005]
[1672900296713,2.98687779,1252.5,1252.3,24.01746302]
[1672900297718,2.98687779,1252.5,1252.3,25.21285141]
[1672900299046,6.10693392,1252.5,1252.3,25.21285141]
[1672900299253,1.19482377,1252.4,1252.3,16.03216302]
[1672900299494,1.19481923,1252.4,1252.3,18.01428747]
[1672900299830,1.19482582,1252.4,1252.3,18.01428747]
[1672900300028,1.19482634,1252.4,1252.3,18.01428747]
[1672900300203,7.35085016,1252.5,1252.3,18.01428747]
[1672900300412,1.19482293,1252.4,1252.3,16.03216302]
[1672900300622,1.19482752,1252.4,1252.3,18.01429415]
[1672900300826,7.35085016,1252.5,1252.3,18.01429415]
[1672900301038,7.35085016,1252.5,1252.3,16.03216302]
[1672900301298,1.19485679,1252.4,1252.3,24.01746302]
[1672900301445,1.85817889,1252.5,1252.3,25.99957546]
[1672900301656,4.79276513,1252.5,1252.3,24.01746302]
[1672900302235,1.1948641,1252.4,1252.3,24.01746302]
[1672900302430,1.85817889,1252.5,1252.3,25.99957475]
[1672900302760,1.79217889,1252.5,1252.3,24.01746302]
[1672900302972,4.16479403,1252.5,1252.3,24.01746302]
[1672900303327,1.19486733,1252.4,1252.3,24.01746302]
[1672900303542,1.85817889,1252.5,1252.3,25.99959306]
[1672900303748,2.98712849,1252.5,1252.3,25.21285141]
[1672900303963,2.98711954,1252.5,1252.3,25.21285141]
[1672900305066,1.19492436,1252.4,1252.3,16.03216302]
[1672900305235,4.23079403,1252.5,1252.3,25.99958909]
[1672900305449,7.16538027,1252.5,1252.3,16.03216302]
[1672900305674,1.19495839,1252.4,1252.3,8.04715302]
[1672900305891,7.23138027,1252.5,1252.3,18.01117639]
[1672900306231,1.19495402,1252.4,1252.3,8.0437401]
[1672900306380,7.23138027,1252.5,1252.3,10.02588567]
[1672900306591,1.19495386,1252.4,1252.3,8.0437401]
[1672900306806,1.19492939,1252.4,1252.3,10.0258859]
[1672900307059,7.23138027,1252.5,1252.3,10.0258859]
[1672900307221,1.19500046,1252.4,1252.3,8.0437401]
[1672900307431,0.84263807,1252.4,1252.3,10.02588716]
[1672900307640,7.23138027,1252.5,1252.3,10.02588716]
[1672900307859,1.19498897,1252.4,1252.3,16.0290401]
[1672900308224,7.23138027,1252.5,1252.3,18.01120421]
[1672900308399,7.23138027,1252.5,1252.3,16.0290401]
[1672900308748,1.19500353,1252.4,1252.3,24.0143401]
[1672900308984,7.23138027,1252.5,1252.3,18.01116591]
[1672900309110,7.23138027,1252.5,1252.3,24.0143401]
[1672900309322,1.1950094,1252.4,1252.3,24.0143401]
[1672900309595,1.1950094,1252.4,1252.3,27.1918291]
[1672900309596,1.19502389,1252.4,1252.3,27.1918291]
[1672900309750,4.85876513,1252.5,1252.3,27.1918291]
[1672900309960,1.19502185,1252.4,1252.3,25.20972849]
[1672900310325,4.85876513,1252.5,1252.3,27.19182508]
[1672900310537,1.19501498,1252.4,1252.3,25.20972849]
[1672900310686,4.85876513,1252.5,1252.3,19.20653338]
[1672900310896,4.79276513,1252.5,1252.3,25.20972849]
[1672900311162,1.1950375,1252.4,1252.3,25.20972849]
[1672900311381,4.85876513,1252.5,1252.3,27.19182084]
[1672900311522,1.19512897,1252.4,1252.3,25.20972849]
[1672900311736,1.19512719,1252.4,1252.3,27.1918242]
[1672900312073,1.19512634,1252.4,1252.3,27.1918242]
[1672900312264,4.85876513,1252.5,1252.3,27.1918242]
[1672900312487,1.1951278,1252.4,1252.3,25.20972849]
[1672900312825,1.19512965,1252.4,1252.3,27.19182383]
[1672900313022,4.85876513,1252.5,1252.3,19.20652383]
[1672900313206,4.79276513,1252.5,1252.3,17.22442849]
[1672900313416,1.19513467,1252.4,1252.3,17.22442849]
[1672900313626,4.85876513,1252.5,1252.3,19.20652524]
[1672900313876,4.79276513,1252.5,1252.3,17.22442849]
[1672900314426,4.79276513,1252.5,1252.3,25.20972849]
[1672900314599,1.1951362,1252.4,1252.3,25.20972849]
[1672900314783,1.19511258,1252.4,1252.3,27.19182379]
[1672900314995,4.85876513,1252.5,1252.3,27.19182379]
[1672900315239,1.19512788,1252.4,1252.3,17.22442849]
[1672900315467,1.19513226,1252.4,1252.3,19.20652767]
[1672900315681,7.23138027,1252.5,1252.3,10.02583928]
[1672900315999,1.79217888,1252.4,1252.3,8.0437401]
[1672900316158,7.23191023,1252.5,1252.3,10.02590399]
[1672900316368,7.23191023,1252.5,1252.3,8.0437401]
[1672900316607,1.19512644,1252.4,1252.3,8.0437401]
[1672900316815,1.19512644,1252.4,1252.3,10.02590485]
[1672900316816,1.19512595,1252.4,1252.3,10.02590485]
[1672900317026,1.19513092,1252.4,1252.3,18.01120485]
[1672900317220,7.23191023,1252.5,1252.3,18.01120485]